bitfinex-derivatives/quotes_SOLF0:USTF0_20240920
["timestamp","ask_amount","ask_price","bid_price","bid_amount"]
[1726835985652,3.3244,150.38,150.35,3.3249]
[1726835986354,3.3244,150.38,150.35,19.2949]
[1726835988359,3.3244,150.38,150.35,3.3249]
[1726835988559,3.3247,150.37,150.34,3.3251]
[1726835990057,3.3247,150.37,150.34,13.5451]
[1726835990954,2.7612,150.4,150.31,133.04]
[1726835990955,3.3255,150.33,150.31,133.04]
[1726835991157,10.22,150.34,150.31,133.04]
[1726835991353,13.5454,150.34,150.31,133.04]
[1726835991557,13.5454,150.34,150.31,136.30292961]
[1726835991760,3.3254,150.34,150.31,146.52292961]
[1726835992760,3.3254,150.34,150.31,149.84882961]
[1726835997164,3.3248,150.37,150.33,3.3254]
[1726835997369,11.5119,150.38,150.33,10.22]
[1726835997763,3.325,150.36,150.33,13.5454]
[1726835998266,11.5119,150.38,150.33,13.5454]
[1726835998870,3.325,150.36,150.33,13.5454]
[1726835999371,11.5119,150.38,150.33,13.5454]
[1726835999561,10.22,150.37,150.33,13.5454]
[1726836000270,10.22,150.35,150.31,136.30292961]
[1726836000571,10.22,150.34,150.31,133.04]
[1726836000764,3.3257,150.32,150.31,133.04]
[1726836000970,13.5457,150.32,150.31,133.04]
[1726836001168,13.5457,150.32,150.26,10.22]
[1726836001169,10.22,150.32,150.26,10.22]
[1726836001368,3.3263,150.3,150.27,6.62998265]
[1726836001566,11.6105,150.33,150.28,10.22]
[1726836001763,3.3258,150.32,150.29,10.22]
[1726836001967,3.3258,150.32,150.29,13.58981402]
[1726836002277,3.3259,150.32,150.29,6.69601402]
[1726836002581,1.3905,150.33,150.29,3.36981402]
[1726836002877,1.3905,150.33,150.22,135.7372]
[1726836002878,10.22,150.36,150.31,13.5459]
[1726836003074,10.22,150.37,150.33,10.22]
[1726836003270,10.22,150.35,150.33,3.27677846]
[1726836003579,10.22,150.34,150.29,10.22]
[1726836003975,3.3259,150.32,150.27,15.98]
[1726836005573,3.3259,150.32,150.29,3.3262]
[1726836006278,3.3256,150.33,150.29,3.3262]
[1726836007282,3.3256,150.33,150.27,15.98]
[1726836007681,17.2719,150.38,150.28,15.98]
[1726836007876,17.2719,150.38,150.3,15.98]
[1726836007877,1.2919,150.38,150.3,15.98]
[1726836008382,3.325,150.36,150.32,3.3256]
[1726836008574,1.2919,150.38,150.33,3.24783636]
[1726836009176,3.3249,150.36,150.33,3.24783636]
[1726836011482,3.3249,150.36,150.33,6.57323636]
[1726836016596,1.3695,150.39,150.33,19.22783636]
[1726836016787,1.3695,150.39,150.33,15.98]
[1726836017184,1.3695,150.39,150.33,19.35490705]
[1726836017385,1.3695,150.39,150.35,15.98]
[1726836018091,1.3695,150.39,150.36,3.30738895]
[1726836018304,1.3,150.44,150.36,15.98]
[1726836018587,2.6962,150.44,150.36,19.38450858]
[1726836018790,1.3962,150.44,150.38,15.98]
[1726836018984,15.98,150.48,150.38,15.98]
[1726836019584,1.3454,150.47,150.38,19.30080907]
[1726836020293,1.3117,150.46,150.38,19.30080907]
[1726836020483,1.3117,150.46,150.4,3.3239]
[1726836020687,17.2917,150.46,150.38,19.30080907]
[1726836021091,3.3234,150.43,150.39,3.324]
[1726836021296,17.2917,150.46,150.38,19.30080907]
[1726836021690,3.3231,150.44,150.38,19.30080907]
[1726836021994,15.98,150.44,150.38,3.32080907]
[1726836022194,3.3241,150.4,150.34,15.98]
[1726836022392,15.98,150.43,150.34,15.98]
[1726836022886,15.98,150.43,150.32,152.38906986]
[1726836023086,15.98,150.41,150.32,152.38906986]
[1726836023286,3.3247,150.37,150.33,3.3253]
[1726836023487,3.3247,150.37,150.32,136.40906986]
[1726836023687,1.367,150.4,150.32,136.40906986]
[1726836024098,1.367,150.4,150.32,152.38906986]
[1726836024897,3.3242,150.39,150.32,152.38906986]
[1726836025197,1.367,150.4,150.32,152.38906986]
[1726836025398,4.6911,150.4,150.36,3.3247]
[1726836026897,4.6911,150.4,150.37,3.3245]
[1726836028094,1.367,150.4,150.34,15.98]
[1726836028295,3.3238,150.41,150.38,3.3244]
[1726836030501,3.324,150.4,150.35,15.98]
[1726836031304,3.324,150.4,150.37,3.3245]
[1726836032498,3.3238,150.41,150.37,3.3245]
[1726836033093,3.3236,150.42,150.35,15.98]
[1726836033295,3.3236,150.42,150.33,133.02]
[1726836033296,1.2823,150.45,150.37,15.98]
[1726836033702,3.3234,150.43,150.4,3.3238]
[1726836034404,3.3234,150.43,150.4,6.70323704]
[1726836034600,17.2623,150.45,150.35,15.98]
[1726836034900,15.98,150.41,150.33,133.02]
[1726836035499,3.3248,150.36,150.33,136.3453]
[1726836035695,1.3356,150.4,150.33,133.02]
[1726836036003,3.3247,150.37,150.34,3.3252]
[1726836036399,15.98,150.39,150.33,133.02]
[1726836036603,17.3551,150.39,150.33,133.02]
[1726836037303,15.98,150.37,150.33,133.02]
[1726836037503,3.3252,150.34,150.33,133.02]
[1726836039210,15.98,150.37,150.33,133.02]
[1726836039405,18.7058,150.39,150.33,133.02]
[1726836039806,3.325,150.36,150.33,136.3455]
[1726836040813,3.3247,150.37,150.34,3.3252]
[1726836041006,1.3751,150.39,150.33,149.0]
[1726836041213,3.3244,150.38,150.33,149.0]
[1726836041812,1.3751,150.39,150.34,3.3252]
[1726836042208,1.3751,150.39,150.33,149.0]
[1726836042408,4.6993,150.39,150.33,149.0]
[1726836043109,4.6993,150.39,150.36,3.3247]
[1726836043711,3.324,150.4,150.34,15.98]
[1726836044514,3.324,150.4,150.37,3.3244]
[1726836045015,15.98,150.42,150.33,149.0]
[1726836045410,3.3243,150.39,150.37,3.3245]
[1726836047614,3.3243,150.39,150.36,3.3247]
[1726836048116,3.324,150.4,150.33,15.98]
[1726836048312,1.2855,150.43,150.35,15.98]
[1726836048710,3.3238,150.41,150.39,3.3241]
[1726836048912,3.3238,150.41,150.39,6.62561895]
[1726836049811,3.3238,150.41,150.39,3.30151895]
[1726836050112,3.3238,150.41,150.38,3.3243]
[1726836050308,3.3235,150.42,150.4,3.3238]
[1726836050514,1.2855,150.43,150.4,3.3238]
[1726836050719,15.98,150.47,150.41,3.3237]
[1726836050910,15.98,150.47,150.38,15.98]
[1726836051111,19.9557,150.49,150.38,15.98]
[1726836051410,19.9557,150.49,150.42,3.3235]
[1726836051613,3.9757,150.49,150.43,3.34375232]
[1726836051916,3.3226,150.46,150.43,3.3232]
[1726836052114,3.3226,150.46,150.44,3.32878774]
[1726836052516,3.3226,150.46,150.43,3.3232]
[1726836053017,3.3226,150.46,150.44,3.30374566]
[1726836053212,2.6836,150.49,150.42,15.98]
[1726836053417,1.3012,150.49,150.42,19.30568641]
[1726836053914,1.3012,150.49,150.44,15.98]
[1726836054107,17.3056,150.53,150.44,15.98]
[1726836054313,2.6207,150.53,150.46,15.98]
[1726836054612,1.2951,150.53,150.48,15.98]
[1726836055111,3.3206,150.55,150.51,3.3213]
[1726836055522,3.321,150.54,150.5,15.98]
[1726836055720,15.98,150.58,150.5,15.98]
[1726836056025,15.98,150.58,150.48,15.98]
[1726836056714,15.98,150.58,150.49,3.3218]
[1726836057116,3.321,150.54,150.49,3.3218]
[1726836059121,3.3212,150.53,150.49,3.3218]
[1726836060012,3.3209,150.54,150.5,3.3216]
[1726836060319,15.98,150.59,150.5,15.98]
[1726836060515,3.3209,150.54,150.5,19.3016]
[1726836060718,15.98,150.59,150.5,15.98]
[1726836060914,15.98,150.59,150.52,15.98]
[1726836061120,15.98,150.59,150.53,6.67260526]
[1726836061623,3.3203,150.57,150.53,6.67260526]
[1726836061811,15.98,150.59,150.53,3.35160526]
[1726836062012,15.98,150.59,150.51,3.3215]
[1726836062211,15.98,150.57,150.48,15.98]
[1726836062417,15.98,150.57,150.51,3.3214]
[1726836062617,15.98,150.57,150.52,3.39158053]
[1726836062917,15.98,150.59,150.5,15.98]
[1726836063113,15.98,150.59,150.52,3.3212]
[1726836063317,15.98,150.59,150.52,6.60148859]
[1726836063716,3.3208,150.55,150.52,6.60148859]
[1726836063922,15.98,150.59,150.53,3.321]
[1726836064223,3.3205,150.56,150.53,3.321]
[1726836065015,3.27349401,150.71,150.53,15.98]
[1726836065316,3.27349401,150.71,150.52,3.28028859]
[1726836065317,3.958,150.64,150.55,15.98]
[1726836065619,3.3194,150.61,150.58,3.3198]
[1726836066323,2.6017,150.64,150.58,15.98]
[1726836068420,2.6017,150.64,150.58,19.2999]
[1726836068920,2.6017,150.64,150.57,6.6279909]
[1726836069118,2.6017,150.64,150.57,3.32]
[1726836069315,2.6017,150.64,150.55,15.98]
[1726836069521,2.6017,150.64,150.55,152.09782202]
[1726836069926,3.3194,150.61,150.58,3.3199]
[1726836070117,2.6017,150.64,150.57,15.98]
[1726836070722,3.3192,150.62,150.59,3.3196]
[1726836071726,3.3193,150.61,150.58,3.3199]
[1726836073725,3.3191,150.62,150.59,3.3197]
[1726836074229,3.3191,150.62,150.59,19.2997]
[1726836074923,2.6017,150.64,150.56,132.86]
[1726836075123,15.98,150.63,150.56,132.86]
[1726836075428,3.3201,150.58,150.56,132.86]
[1726836076221,17.3514,150.63,150.56,132.86]
[1726836076824,3.32,150.58,150.56,132.86]
[1726836077422,3.3198,150.59,150.56,136.1804]
[1726836078226,3.3196,150.6,150.57,3.3201]
[1726836078426,1.3714,150.63,150.56,148.84]
[1726836078625,3.3192,150.62,150.58,15.98]
[1726836078825,1.3714,150.63,150.58,15.98]
[1726836079219,2.6017,150.64,150.58,15.98]
[1726836079432,3.3192,150.62,150.59,3.3197]
[1726836079827,2.6017,150.64,150.58,19.2998]
[1726836080027,2.6017,150.64,150.58,3.3198]
[1726836081125,3.3195,150.61,150.58,3.3198]
[1726836081527,2.6017,150.64,150.58,3.3199]
[1726836081830,3.3193,150.62,150.58,3.3199]
[1726836082428,3.3193,150.61,150.58,3.3199]
[1726836083129,3.3193,150.61,150.56,15.98]
[1726836083331,2.6017,150.64,150.58,15.98]
[1726836083332,3.3192,150.62,150.58,15.98]
[1726836084024,3.3192,150.62,150.59,3.3196]
[1726836084832,3.3193,150.61,150.59,3.3196]
[1726836085028,3.3193,150.61,150.58,19.2999]
[1726836085328,6.636,150.68,150.58,15.98]
[1726836085530,3.3189,150.63,150.6,3.3194]
[1726836086124,3.3187,150.64,150.61,15.98]
[1726836086527,1.2793,150.67,150.61,19.2992]
[1726836087432,3.3188,150.64,150.61,19.2992]
[1726836088229,1.2793,150.67,150.62,3.319]
[1726836088230,3.3185,150.65,150.62,3.319]
[1726836088423,1.2793,150.67,150.61,15.98]
[1726836088624,1.2793,150.67,150.65,15.98]
[1726836088824,2.6511,150.7,150.64,3.25188276]
[1726836089134,1.2774,150.69,150.63,15.98]
[1726836089335,3.3183,150.66,150.63,19.2987]
[1726836089535,3.3183,150.66,150.64,3.36177282]
[1726836090136,3.28873411,150.75,150.63,15.98]
[1726836090335,19.9276,150.74,150.63,15.98]
[1726836090537,3.9476,150.74,150.61,15.98]
[1726836090726,15.98,150.69,150.57,132.84]
[1726836090932,3.9476,150.68,150.59,15.98]
[1726836092139,3.9476,150.68,150.61,3.3191]
[1726836092435,3.9476,150.68,150.59,15.98]
[1726836094928,15.98,150.67,150.59,15.98]
[1726836095128,6.6339,150.72,150.61,15.98]
[1726836095333,6.6339,150.72,150.63,15.98]
[1726836095334,3.9561,150.71,150.63,15.98]
[1726836095740,3.9561,150.71,150.64,3.3186]
[1726836095741,3.3181,150.67,150.64,3.3186]
[1726836096137,3.9561,150.71,150.63,15.98]
[1726836096335,3.3181,150.67,150.64,3.3186]
[1726836097236,3.3178,150.68,150.65,3.3184]
[1726836098634,3.318,150.67,150.65,3.3184]
[1726836100138,3.9561,150.71,150.65,3.3184]
[1726836100340,3.9561,150.71,150.63,15.98]
[1726836101043,3.3176,150.69,150.65,3.3183]
[1726836101245,3.9561,150.71,150.65,3.3183]
[1726836101742,3.3178,150.68,150.65,3.3183]
[1726836103247,3.3176,150.69,150.66,3.3181]
[1726836103545,3.9561,150.71,150.63,15.98]
[1726836104549,15.98,150.67,150.6,132.8]
[1726836104943,15.98,150.65,150.5,132.78]
[1726836105146,15.98,150.6,150.51,15.98]
[1726836105346,3.29083114,150.62,150.52,3.37583293]
[1726836105542,15.98,150.59,150.52,3.37583293]
[1726836105744,1.3036,150.58,150.52,3.37583293]
[1726836105950,1.3036,150.58,150.51,15.98]
[1726836106151,3.3204,150.57,150.53,3.3209]
[1726836106753,3.7193,150.64,150.55,15.98]
[1726836106941,1.3036,150.63,150.55,15.98]
[1726836107348,1.3036,150.63,150.57,19.3]
[1726836107847,3.3195,150.6,150.57,19.3]
[1726836108050,1.3036,150.63,150.57,15.98]
[1726836108952,3.3197,150.6,150.57,15.98]
[1726836109246,1.3036,150.63,150.57,15.98]
[1726836109444,3.3201,150.58,150.53,15.98]
[1726836110243,3.3201,150.58,150.55,3.3205]
[1726836110845,17.2836,150.63,150.56,3.3202]
[1726836111650,17.2836,150.63,150.56,3.26348056]
[1726836111947,17.2836,150.63,150.57,3.3201]
[1726836112451,1.3036,150.63,150.57,15.98]
[1726836113351,1.3036,150.63,150.58,3.3199]
[1726836113653,1.3036,150.63,150.56,3.26348056]
[1726836113856,17.2836,150.63,150.55,15.98]
[1726836114056,17.2836,150.63,150.53,15.98]
[1726836114451,3.3201,150.58,150.55,3.3205]
[1726836114652,1.3036,150.63,150.55,15.98]
[1726836115153,1.3036,150.63,150.57,3.32]
[1726836115154,3.3196,150.6,150.57,3.32]
[1726836116350,3.3194,150.61,150.58,3.3199]
[1726836117659,3.3192,150.62,150.58,3.3199]
[1726836117849,1.3036,150.63,150.59,3.3197]
[1726836118258,3.3193,150.62,150.59,3.3197]
[1726836118456,1.3036,150.63,150.59,3.3197]
[1726836118655,6.6349,150.7,150.59,15.98]
[1726836118656,15.98,150.68,150.59,15.98]
[1726836119053,15.98,150.68,150.61,3.3192]
[1726836119666,15.98,150.68,150.6,3.3194]
[1726836119963,3.319,150.63,150.6,3.3194]
[1726836120159,15.98,150.68,150.6,3.3194]
[1726836120361,15.98,150.66,150.59,19.2997]
[1726836120664,15.98,150.66,150.56,21.94899833]
[1726836120856,3.3192,150.62,150.59,3.3197]
[1726836121054,15.98,150.66,150.56,21.94899833]
[1726836121560,3.3192,150.62,150.59,3.3197]
[1726836121865,15.98,150.67,150.56,21.94899833]
[1726836122159,3.3191,150.62,150.56,21.94899833]
[1726836122566,3.3197,150.6,150.57,3.32]
[1726836122768,15.98,150.65,150.56,21.94899833]
[1726836123364,4.1585,150.69,150.56,21.94899833]
[1726836123365,15.98,150.64,150.56,21.94899833]
[1726836123670,3.3192,150.62,150.56,21.94899833]
[1726836123870,15.98,150.66,150.56,21.94899833]
[1726836124563,15.98,150.66,150.56,154.76899833]
[1726836124767,15.98,150.66,150.59,3.3197]
[1726836124959,15.98,150.64,150.56,154.76899833]
[1726836125160,3.3196,150.6,150.57,3.32]
[1726836125764,3.3194,150.61,150.57,3.32]
[1726836126277,3.3194,150.61,150.58,3.3199]
[1726836126668,3.3195,150.6,150.56,132.82]
[1726836127072,3.3195,150.6,150.57,3.32]
[1726836127663,3.3194,150.61,150.58,3.3199]
[1726836128575,2.7698,150.69,150.59,15.98]
[1726836128877,1.359,150.68,150.59,15.98]
[1726836129075,1.359,150.68,150.61,15.98]
[1726836129279,3.3187,150.64,150.61,19.2991]
[1726836129979,15.98,150.66,150.57,18.6473]
[1726836130184,1.359,150.68,150.57,18.6473]
[1726836130482,3.3185,150.65,150.59,15.98]
[1726836131079,3.3185,150.65,150.62,3.3189]
[1726836133075,1.359,150.68,150.61,15.98]
[1726836133676,3.3181,150.67,150.64,3.3186]
[1726836134679,3.3182,150.66,150.64,3.3186]
[1726836134974,3.3177,150.69,150.63,19.37551726]
[1726836135184,15.98,150.72,150.63,15.98]
[1726836135370,15.98,150.72,150.64,3.25576628]
[1726836135573,3.3177,150.69,150.66,3.3181]
[1726836136176,3.3178,150.68,150.65,3.3183]
[1726836136377,15.98,150.71,150.64,3.25576628]
[1726836136572,15.98,150.71,150.62,15.98]
[1726836136777,15.98,150.71,150.66,3.318]
[1726836136778,3.3175,150.69,150.66,3.318]
[1726836137675,1.3199,150.73,150.68,3.3176]
[1726836137879,17.2999,150.73,150.64,19.25667913]
[1726836138181,3.3174,150.7,150.67,3.3178]
[1726836138475,1.3199,150.73,150.65,15.98]
[1726836138879,1.3199,150.73,150.65,19.22151065]
[1726836139484,3.3169,150.72,150.69,3.3174]
[1726836139678,1.3199,150.73,150.65,19.22151065]
[1726836139886,4.6367,150.73,150.65,19.22151065]
[1726836140372,4.6367,150.73,150.69,3.3174]
[1726836140571,3.3168,150.73,150.69,3.3174]
[1726836141485,3.3165,150.74,150.67,15.98]
[1726836142081,3.3165,150.74,150.7,3.3172]
[1726836142580,15.98,150.75,150.67,15.98]
[1726836142787,15.98,150.75,150.65,19.22151065]
[1726836142985,3.3175,150.69,150.65,3.24151065]
[1726836143174,3.3175,150.69,150.63,18.7059]
[1726836143378,3.3175,150.69,150.63,151.4659]
[1726836143783,3.3175,150.69,150.66,3.3181]
[1726836147190,1.3824,150.75,150.63,154.81183917]
[1726836147382,1.3824,150.75,150.63,136.10593917]
[1726836147587,15.98,150.71,150.63,136.10593917]
[1726836147786,3.3182,150.66,150.63,139.42463917]
[1726836150085,3.3182,150.66,150.63,136.10593917]
[1726836151292,3.3182,150.66,150.63,139.42463917]
[1726836152494,3.3181,150.67,150.63,139.42463917]
[1726836152994,3.3181,150.67,150.63,6.66463917]
[1726836153292,3.3181,150.67,150.64,3.3186]
[1726836154095,3.3181,150.67,150.64,6.66764105]
[1726836154394,3.3178,150.68,150.65,3.3184]
[1726836155295,3.3178,150.68,150.64,6.63601208]
[1726836155884,3.318,150.67,150.64,6.63601208]
[1726836156995,3.3178,150.68,150.64,6.63601208]
[1726836158196,3.3178,150.68,150.65,3.3183]
[1726836158695,3.3176,150.69,150.66,3.3182]
[1726836159094,1.3637,150.7,150.64,15.98]
[1726836159288,4.6812,150.7,150.66,3.318]
[1726836159491,4.6812,150.7,150.64,19.37018746]
[1726836160896,1.3637,150.7,150.67,3.3178]
[1726836161205,1.3824,150.75,150.68,15.98]
[1726836161404,2.6903,150.75,150.68,15.98]
[1726836161897,3.3169,150.72,150.69,10.2]
[1726836162695,3.3169,150.72,150.69,13.56529216]
[1726836163602,3.3169,150.72,150.69,16.88269216]
[1726836165199,10.2,150.73,150.68,10.2]
[1726836165598,3.3174,150.7,150.68,13.57458213]
[1726836166097,10.2,150.72,150.68,13.57458213]
[1726836166900,3.3172,150.71,150.68,16.89228213]
[1726836167504,3.317,150.72,150.69,13.5175]
[1726836168602,3.3171,150.71,150.69,13.5175]
[1726836169506,3.317,150.72,150.69,13.5175]
[1726836170206,10.2,150.71,150.63,135.34]
[1726836170394,2.6903,150.75,150.65,10.2]
[1726836170599,10.2,150.7,150.65,13.5182]
[1726836171203,3.3179,150.68,150.65,13.5182]
[1726836171506,10.2,150.69,150.64,16.80425122]
[1726836172005,3.3178,150.68,150.64,13.48565122]
[1726836172404,3.3176,150.69,150.65,13.5183]
[1726836173205,3.3176,150.69,150.66,3.3181]
[1726836174802,3.3176,150.69,150.67,3.3179]
[1726836175004,2.6903,150.75,150.68,10.2]
[1726836175204,2.6903,150.75,150.7,10.2]
[1726836175205,1.3079,150.75,150.7,10.2]
[1726836175700,1.3079,150.75,150.72,10.2]
[1726836175910,1.3079,150.75,150.73,3.3165]
[1726836176101,1.3079,150.75,150.7,19.26111802]
[1726836176704,4.6242,150.75,150.72,3.3167]
[1726836177006,1.3079,150.75,150.72,3.3167]
[1726836177209,1.3079,150.75,150.7,3.33111802]
[1726836177407,3.3165,150.74,150.71,3.3169]
[1726836178409,3.3162,150.75,150.72,3.3168]
[1726836180209,4.5801,150.77,150.73,3.3165]
[1726836180411,1.2641,150.77,150.73,3.3165]
[1726836180903,3.3161,150.76,150.72,3.3168]
[1726836181306,4.58,150.77,150.73,3.3165]
[1726836181508,18.5169,150.79,150.7,19.23701546]
[1726836181509,1.3031,150.79,150.72,15.93]
[1726836181705,1.3031,150.79,150.74,15.93]
[1726836182014,4.6186,150.79,150.75,3.316]
[1726836182400,4.6186,150.79,150.74,15.93]
[1726836182603,4.6186,150.79,150.77,3.3158]
[1726836183510,2.5683,150.85,150.76,15.93]
[1726836183710,1.313,150.84,150.76,15.93]
[1726836184105,3.3148,150.82,150.79,3.3152]
[1726836184407,1.313,150.84,150.78,15.93]
[1726836184806,3.3145,150.83,150.8,3.3149]
[1726836185011,1.313,150.84,150.8,3.3149]
[1726836185312,1.313,150.84,150.78,15.93]
[1726836185507,3.3147,150.82,150.79,3.3151]
[1726836185720,3.3147,150.82,150.79,6.64058328]
[1726836187109,1.313,150.84,150.75,132.7]
[1726836187305,1.313,150.84,150.76,3.38683294]
[1726836187306,15.93,150.83,150.76,3.38683294]
[1726836187613,3.3154,150.79,150.76,6.70263294]
[1726836188008,15.93,150.83,150.76,3.38683294]
[1726836188308,1.313,150.84,150.75,132.7]
[1726836188508,15.93,150.78,150.75,132.7]
[1726836188706,3.316,150.76,150.75,132.7]
[1726836190718,3.316,150.76,150.71,19.23890229]
[1726836191007,3.316,150.76,150.73,3.3166]
[1726836191615,3.3162,150.75,150.73,3.3166]
[1726836191813,2.6415,150.77,150.73,3.3166]
[1726836192209,3.3162,150.76,150.73,3.3166]
[1726836192605,2.6415,150.77,150.73,3.3166]
[1726836192810,2.6415,150.77,150.71,19.23890229]
[1726836193010,2.6415,150.77,150.71,3.30890229]
[1726836193217,2.6415,150.77,150.72,3.3169]
[1726836193519,3.3164,150.75,150.72,3.3169]
[1726836193818,2.6415,150.77,150.71,3.3030351]
[1726836194020,3.3163,150.75,150.69,15.93]
[1726836194410,3.3163,150.75,150.72,3.3167]
[1726836195414,3.3161,150.76,150.73,3.3166]
[1726836195610,1.2723,150.77,150.73,3.3166]
[1726836196126,4.5882,150.77,150.73,6.68166237]
[1726836196414,1.2723,150.77,150.73,6.68166237]
[1726836197618,3.3161,150.76,150.73,6.68166237]
[1726836199926,3.3158,150.77,150.74,3.3164]
[1726836200121,1.3567,150.81,150.73,19.29506237]
[1726836200315,3.3157,150.78,150.75,3.3161]
[1726836200932,3.3157,150.78,150.76,3.3159]
[1726836201429,3.3154,150.79,150.76,3.3159]
[1726836202424,3.3156,150.78,150.76,3.3159]
[1726836203030,3.3156,150.78,150.75,3.3162]
[1726836204933,3.3154,150.79,150.76,3.3159]
[1726836205728,3.3156,150.78,150.76,3.3159]
[1726836207627,3.3156,150.78,150.75,3.3161]
[1726836208033,1.3567,150.81,150.74,10.19]
[1726836208233,1.3567,150.81,150.73,16.87156237]
[1726836208234,10.19,150.78,150.73,16.87156237]
[1726836208530,3.3159,150.77,150.74,10.19]
[1726836208731,3.3159,150.77,150.74,13.5064]
[1726836208931,3.3159,150.77,150.75,10.19]
[1726836209132,3.3156,150.78,150.76,10.19]
[1726836209332,12.8902,150.81,150.76,13.5059]
[1726836209528,12.8902,150.81,150.76,10.19]
[1726836209927,3.3156,150.78,150.75,3.316]
[1726836210627,3.3156,150.78,150.75,6.6505459]
[1726836211234,3.3154,150.79,150.76,3.3159]
[1726836212230,3.3155,150.78,150.76,3.3159]
[1726836212431,2.7002,150.81,150.75,6.6507459]
[1726836212833,3.3158,150.77,150.75,6.6507459]
[1726836214035,3.3157,150.78,150.75,6.6507459]
[1726836215332,9.9401,150.88,150.77,15.92]
[1726836215538,3.9339,150.87,150.77,15.92]
[1726836215834,3.3146,150.83,150.77,15.92]
[1726836216136,3.9339,150.87,150.77,15.92]
[1726836216933,3.3147,150.82,150.79,3.3152]
[1726836217136,3.3147,150.82,150.77,15.92]
[1726836217741,3.3147,150.82,150.8,3.3151]
[1726836217942,3.3145,150.83,150.8,3.3151]
[1726836220237,3.9339,150.87,150.77,15.92]
[1726836220841,3.314,150.85,150.82,3.3145]
[1726836221036,3.9339,150.87,150.8,15.92]
[1726836221236,1.3747,150.87,150.82,15.92]
[1726836222340,2.6323,150.91,150.84,15.92]
[1726836222645,4.0004,150.91,150.84,15.92]
[1726836222843,3.3132,150.89,150.86,3.3137]
[1726836223246,4.0004,150.91,150.84,15.92]
[1726836223750,4.0004,150.91,150.86,3.3137]
[1726836224247,4.0004,150.91,150.85,3.3139]
[1726836224945,3.3133,150.89,150.86,3.3137]
[1726836225942,3.313,150.9,150.86,3.3137]
[1726836226734,3.3132,150.89,150.84,15.92]
[1726836227943,3.3132,150.89,150.86,3.3136]
[1726836229936,3.3132,150.89,150.86,13.4936]
[1726836230240,2.633,150.91,150.86,10.18]
[1726836230442,1.3681,150.91,150.89,10.18]
[1726836230845,13.4923,150.93,150.89,13.4929]
[1726836231147,1.2971,150.95,150.86,3.32371857]
[1726836231340,1.2971,150.95,150.86,10.18]
[1726836231341,10.18,150.9,150.86,10.18]
[1726836231542,13.493,150.9,150.86,10.18]
[1726836232142,13.493,150.9,150.84,3.27864671]
[1726836232143,3.313,150.9,150.84,3.27864671]
[1726836232449,3.3128,150.91,150.83,15.9]
[1726836232937,3.3128,150.91,150.87,3.3134]
[1726836233344,3.313,150.9,150.87,3.3134]
[1726836233650,3.313,150.9,150.83,19.16472745]
[1726836233651,15.9,150.93,150.88,3.3133]
[1726836234839,3.3128,150.91,150.88,3.3133]
[1726836235044,1.2971,150.95,150.83,19.16472745]
[1726836235248,15.9,150.92,150.83,19.16472745]
[1726836235446,3.3129,150.9,150.83,19.16472745]
[1726836237050,3.3129,150.9,150.87,3.3134]